Cogmind - Beta 14 @@@ ROGUE MODE // 2024.10.11 @ 15:42:02 Player: Hokome Result: Destroyed by Y-45 Defender with Heavy Assault Rifle Performance ------------- Evolutions (1) 500 Regions Visited (2) 400 Robots Destroyed (25) 125 Value Destroyed (501) 501 Prototype IDs (0) 0 Alien Tech Used (0) 0 Bonus (0) 0 TOTAL SCORE: 1526 Bonus ------- None Cogmind --------- Core Integrity 0/400 Matter 252/300 Energy 17/125 System Corruption 2% Temperature Cool (9) Movement Treading (320) Ox2 Location -9/Materials Parts ------- > --- POWER (1) -------- Light Ion Engine > --- PROPULSION (2) --- Light Treads Light Treads > --- UTILITY (4) ------ Small Storage Unit Huge Storage Unit Salvage Targeting Computer > --- WEAPON (2) ------- Shock Rifle Light Assault Rifle > --- INVENTORY (25) --- Flight Unit Small Matter Pod (0) Tractor Beam Shock Rifle Shock Rifle Peak State ------------ > --- POWER ------------ Ion Engine > --- PROPULSION ------- Wheel Compact Wheel > --- UTILITY ---------- Huge Storage Unit Improved Terrain Scanner Improved Terrain Scanner Salvage Targeting Computer > --- WEAPON ----------- Heavy EM Pulse Gun Shock Rifle > --- INVENTORY -------- Light Ion Engine Light Ion Engine Light Ion Engine Improved Ion Engine Light Treads Light Treads Wheel Small Storage Unit Tractor Beam Shock Rifle Shock Rifle Shock Rifle Small Laser Assault Rifle Light Assault Rifle Light Assault Rifle Shotgun EMP Blaster Mini Grenade Launcher Maul [Rating: 20] Favorites ----------- Power Light Ion Engine Engine Light Ion Engine Propulsion Wheel Treads Light Treads Wheel Wheel Utility Improved Terrain Scanner Device Improved Terrain Scanner Storage Huge Storage Unit Processor Salvage Targeting Computer Protection Light Armor Plating Weapon Assault Rifle Energy Gun Shock Rifle Ballistic Gun Assault Rifle Launcher Mini Grenade Launcher Impact Weapon Maul Build | -11 -10 -9 ------- Run | Yrd Mat Mat Slots Evolved 2 | . . 2 Power . | . . . Propulsion . | . . . Utility 2 | . . 2 Weapon . | . . . Parts Attached 46 | 7 3 36 Power 7 | 1 . 6 Engine 7 | 1 . 6 Core . | . . . Reactor . | . . . Propulsion 12 | 2 2 8 Treads 7 | 2 . 5 Leg . | . . . Wheel 5 | . 2 3 Hover . | . . . Flight . | . . . Utility 10 | 2 1 7 Device 3 | 1 . 2 Storage 5 | 1 1 3 Processor 1 | . . 1 Hackware . | . . . Protection 1 | . . 1 Artifact . | . . . Weapon 17 | 2 . 15 Energy Gun 6 | . . 6 Energy Cannon . | . . . Ballistic Gun 5 | 2 . 3 Ballistic Cannon . | . . . Launcher 5 | . . 5 Special Weapon . | . . . Impact Weapon 1 | . . 1 Slashing Weapon . | . . . Piercing Weapon . | . . . Special Melee Weapon . | . . . Unidentified Prototypes . | . . . Corrupted Parts 2 | . . 2 System Corruption 2 | . . 2 Parts Lost 17 | . . 17 Power 3 | . . 3 Propulsion 5 | . . 5 Utility 4 | . . 4 Weapon 5 | . . 5 Highest Loss Streak 7 | . . 7 To Critical Strikes . | . . . Average Slot Usage (%) 92 | . 100 91 Engine 11 | . 14 10 Treads 4 | . 10 3 Wheel 17 | . 17 17 Device 13 | . 14 13 Storage 14 | . 14 14 Processor 6 | . . 8 Protection 2 | . . 2 Energy Gun 7 | . . 8 Ballistic Gun 10 | . 28 6 Launcher 2 | . . 3 Impact Weapon 1 | . . 1 Peak Build Rating 20 | 9 10 20 Average Rating 12 | 5 9 15 On Entrance 6 | . 9 10 Naked Turns . | . . . Heaviest Build 96 | 12 87 96 Greatest Support 40 | 40 40 40 Greatest Overweight (x) 30 | . 5 30 Average Overweight (x) 2 | . 1 2 Largest Inventory Capacity 25 | 8 25 25 Average Capacity 19 | 7 18 21 Most Carried 20 | 6 10 20 Average Carried 10 | 2 7 12 Final Capacity 25 | 8 25 25 Final Carried 10 | 6 10 5 Class Distribution -------------------- 100% | Mutant Dominant Class ---------------- Mutant | -10/Materials Mutant | -9/Materials Resources | -11 -10 -9 ----------- Run | Yrd Mat Mat Matter Collected 808 | 296 32 480 Remotely . | . . . Salvage Created 642 | 90 32 520 Parts 45 | 4 1 40 Haulers Intercepted . | . . . Recyclers Shooed 1 | 1 . . Parts Field Recycled . | . . . Retrieved Matter . | . . . Parts Self-Destructed . | . . . Prevented . | . . . Kills | -11 -10 -9 ------- Run | Yrd Mat Mat Combat Hostiles Destroyed 19 | . 1 18 Guns 8 | . 1 7 AOE 11 | . . 11 Classes Destroyed 7 | 2 1 4 Worker 2 | . . 2 Tunneler 1 | 1 . . Recycler 3 | 1 . 2 Swarmer 10 | . . 10 Grunt 6 | . 1 5 Duelist 1 | . . 1 Sentry 2 | . . 2 Best Kill Streak 4 | 1 1 4 Combat Bots Only 3 | . 1 3 Max Kills in Single Turn 2 | 1 1 2 Gunslinging . | . . . Exploded 2 | . . 2 Melee . | . . . Uniques/NPCs Destroyed . | . . . Combat | -11 -10 -9 -------- Run | Yrd Mat Mat Hostile Shots Fired 224 | . 9 215 Missed 65 | . 2 63 Damage Taken 1879 | . 81 1798 Core 441 | . 35 406 Absorbed by Shields 101 | . . 101 Core Remaining (%) 93 | 100 86 . Volleys Fired 63 | 8 8 47 Largest 2 | 2 2 2 Hottest 100 | 40 40 100 Shots Fired 107 | 16 16 75 Gun 90 | 16 16 58 Cannon . | . . . Launcher 17 | . . 17 Special . | . . . Kinetic 55 | 16 16 23 Thermal . | . . . Explosive 15 | . . 15 Electromagnetic 37 | . . 37 Robot Hit Streak 16 | 7 6 16 Robot Miss Streak 3 | 2 2 3 Penetration Max . | . . . Secondary Targets 1 | . . 1 Max Gunslinging Chain 1 | . . 1 Shots Hit Robots 65 | 10 9 46 Core Hits 39 | 4 2 33 Critical Kills . | . . . Critical Parts Destroyed . | . . . Critical Strikes 1 | . . 1 Corrupt 1 | . . 1 Melee Attacks . | . . . Impact . | . . . Slashing . | . . . Piercing . | . . . Sneak Attacks . | . . . Combat Hostiles . | . . . Follow-up Attacks . | . . . Damage Inflicted 1989 | 108 88 1793 Guns 755 | 105 88 562 Cannons . | . . . Explosions 1231 | . . 1231 Melee . | . . . Ramming 3 | 3 . . Kinetic 486 | 105 88 293 Thermal 27 | . . 27 Explosive 1125 | . . 1125 Electromagnetic 348 | . . 348 Impact . | . . . Slashing . | . . . Piercing . | . . . Highest Corruption 2 | . . 2 Average Corruption 1 | . . 1 Corruption Purged . | . . . Corruption Blocked . | . . . Effects 5 | . . 5 Heat Flow Errors 3 | . . 3 Parts Rejected 1 | . . 1 Misfires 1 | . . 1 Overload Shots . | . . . Overflow Damage 18 | . . 18 Projectiles . | . . . Explosions 18 | . . 18 Melee . | . . . Knockbacks . | . . . Impact . | . . . Kinetic . | . . . Secondary . | . . . Self-Inflicted Damage 68 | . . 68 Shots 3 | . . 3 Rammed 1 | 1 . . Targets Rammed 1 | 1 . . Kicked . | . . . Crushed . | . . . Highest Temperature 231 | . 6 231 Average Temperature 43 | . 6 46 Received Heat Transfer 522 | . 42 480 Siege Activations . | . . . Robots Corrupted . | . . . Combat Hostiles . | . . . Parts Fried 2 | . . 2 Impact Corruptions . | . . . Robots Melted . | . . . Combat Hostiles . | . . . Parts Melted . | . . . Heat Transferred 100 | . . 100 Parts Sabotaged . | . . . Parts Stolen . | . . . Parts Stripped . | . . . Power Chain Reactions 1 | . . 1 Alert | -11 -10 -9 ------- Run | Yrd Mat Mat Peak Influence 244 | 10 81 244 Initial 33 | . 6 33 Average 84 | 4 40 112 Maximum Alert Level 1 | . . 1 Low Security (%) 93 | 100 100 90 Level 1 6 | . . 9 Level 2 . | . . . Level 3 . | . . . Level 4 . | . . . Level 5 . | . . . High Security . | . . . Max Security . | . . . Squads Dispatched 1 | . 1 . Investigation . | . . . Extermination . | . . . Reinforcement 1 | . 1 . Assault . | . . . Garrison . | . . . Intercept . | . . . Searches Triggered . | . . . Construction Impeded . | . . . Haulers Reinforced . | . . . Active Scanning Responses . | . . . Cargo Convoy Interrupts . | . . . Stealth | -11 -10 -9 --------- Run | Yrd Mat Mat Distress Signals 1 | . . 1 Communications Jammed . | . . . Distress Signals . | . . . Times Spotted 28 | . 3 25 Peak Tracking Total 6 | . 2 6 Tactical Retreats 1 | . . 1 Traps | -11 -10 -9 ------- Run | Yrd Mat Mat Traps Triggered . | . . . Indirectly . | . . . Trap Hack Attempts . | . . . Triggered . | . . . Disarmed . | . . . Reprogrammed . | . . . Reused . | . . . Traps Extracted . | . . . Installed . | . . . Triggered . | . . . Machines | -11 -10 -9 ---------- Run | Yrd Mat Mat Machines Disabled 2 | . . 2 Max in Single Turn 2 | . . 2 Machines Repaired . | . . . Machines Dismantled . | . . . Machines Sabotaged . | . . . Overloaded Fab Kills . | . . . Hacking | -11 -10 -9 --------- Run | Yrd Mat Mat Machines Accessed 2 | . 1 1 Terminals 2 | . 1 1 Fabricators . | . . . Repair Stations . | . . . Recycling Units . | . . . Scanalyzers . | . . . Garrison Access . | . . . Total Hacks 9 | . 5 4 Successful 2 | . . 2 Failed 7 | . 5 2 Catastrophic . | . . . Database Lockouts . | . . . Manual . | . . . Terminals 9 | . 5 4 Fabricators . | . . . Repair Stations . | . . . Recycling Units . | . . . Scanalyzers . | . . . Garrison Access . | . . . Terminal Hacks 2 | . . 2 Emergency Access Points 1 | . . 1 Alert Level 1 | . . 1 Fabricator Hacks . | . . . Repair Station Hacks . | . . . Recycling Unit Hacks . | . . . Scanalyzer . | . . . Garrison Access Hacks . | . . . Unauthorized Hacks . | . . . Terminals . | . . . Fabricators . | . . . Repair Stations . | . . . Recycling Units . | . . . Scanalyzers . | . . . Garrison Access . | . . . Data Cores Recovered . | . . . Used . | . . . Hacking Detections 2 | . 1 1 Full Trace Events 1 | . 1 . Feedback Events . | . . . Feedback Blocked . | . . . Robot Schematics Acquired . | . . . Robots Built . | . . . Authchips . | . . . Time . | . . . Total Robot Build Rating . | . . . Part Schematics Acquired . | . . . Parts Built . | . . . Authchips . | . . . Time . | . . . Total Part Build Rating . | . . . Parts Repaired . | . . . Time . | . . . Parts Recycled . | . . . Recycled Matter . | . . . Retrieved Matter . | . . . Retrieved Components . | . . . Parts Scanalyzed . | . . . Part Schematics Acquired . | . . . Parts Damaged . | . . . Bothacking | -11 -10 -9 ------------ Run | Yrd Mat Mat Used RIF Installer . | . . . Robots Hacked . | . . . Non-combat . | . . . Combat . | . . . Robot Hacks Applied . | . . . Relay Couplers Released . | . . . Fabnet Peak Effective % . | . . . Robots Rewired . | . . . Allies Hacked . | . . . Hacks Repelled . | . . . Allies | -11 -10 -9 -------- Run | Yrd Mat Mat Total Allies . | . . . Largest Group . | . . . Highest-Rated Group . | . . . Highest-Rated Ally . | . . . Total Orders . | . . . Ally Attacks . | . . . Total Damage . | . . . Kills . | . . . Allies Corrupted . | . . . Allies Melted . | . . . Intel | -11 -10 -9 ------- Run | Yrd Mat Mat Robot Analysis Total . | . . . Derelict Logs Recovered . | . . . Drone Launches . | . . . Drone Recoveries . | . . . Exploration | -11 -10 -9 ------------- Run | Yrd Mat Mat Turns Passed 1408 | 220 219 969 Spaces Moved 796 | 126 131 539 Core 25 | 24 . 1 Treads 226 | 102 48 76 Legs . | . . . Wheels 545 | . 83 462 Hover . | . . . Flight . | . . . Fastest Speed 50 | 50 135 80 Average Speed 142 | 139 144 142 Slowest Speed 1550 | 160 175 1550 Overloaded Moves . | . . . Propulsion Burnouts . | . . . Robots Hopped . | . . . Cave-ins Triggered . | . . . Exploration Rate (%) 21 | 5 27 32 Regions Visited 2 Branch Regions . Pre-discovered Areas . | . . . Known Exits Taken . | . . . Unknown Exits Taken 2 | 1 1 . Scrap Searched . | . . . Spaces Dug . | . . . Terrain Destroyed 105 | . . 105 Melee . | . . . Projectile . | . . . AOE 105 | . . 105 Terrain Rammed . | . . . Walls Destroyed . | . . . Machines Disabled . | . . . Actions | -11 -10 -9 --------- Run | Yrd Mat Mat Total 965 | 156 145 664 Wait 9 | . . 9 Move 794 | 125 130 539 Hop . | . . . Pick Up 44 | 13 4 27 Fast Attach 5 | 2 . 3 Attach 27 | 5 . 22 Detach 4 | . . 4 Swap 14 | . 3 11 Drop 4 | 2 . 2 Fire 63 | 8 8 47 Melee . | . . . Ram . | . . . Kick . | . . . Crush 1 | 1 . . Escape Stasis . | . . . Rewire . | . . . Trap . | . . . Miscellaneous . | . . . Route ------- -11/Scrapyard -10/Materials (discovered 2 exits: *Mat / [*Min]) -9/Materials History --------- Turn | Location | Event 12 | -11/Scrapyard | Discovered new exit (range 15) 221 | -11/Scrapyard | Entered Materials 328 | -10/Materials | Build established: Mutant 422 | -10/Materials | Discovered new exit (range 7) 424 | -10/Materials | Discovered new exit (range 16) 440 | -10/Materials | Entered another Materials area 440 | -9/Materials | Evolved 2 slots: Utility x2 919 | -9/Materials | Lost 4 parts (1p2n1w) 967 | -9/Materials | Core integrity fell below 50% 988 | -9/Materials | Lost 3 parts (1p1u1w) 1368 | -9/Materials | Core integrity fell below 20% 1409 | -9/Materials | Destroyed by Y-45 Defender with Heavy Assault Rifle Last Messages --------------- 01392_ Wheel destroyed. 01394_ Shock Rifle destroyed. 01395_ U-05 Engineer lays Concrete. 01397_ Critical hit (Burn: +37). 01397_ U-05 Engineer builds a Wall. 01398_ Integrated Corrupted Lgt. Ion Engine (+1). 01399_ L-31 Rogue destroyed. 01399_ Switching to secondary target: Y-45 Defender. 01400_ U-05 Engineer lays Concrete. 01402_ U-05 Engineer builds a Wall. 01402_ U-05 Engineer lays Concrete. 01405_ U-05 Engineer builds a Wall. 01406_ The unstable cave ceiling collapses. 01406_ Lgt. Treads destroyed. 01407_ U-05 Engineer lays Concrete. 01408_ Acquired 21 matter. 01408_ U-05 Engineer builds a Wall. 01409_ The unstable cave ceiling collapses. Map ----- +----------------------------------------------------+ | | | ?????????????????????????????????????????????????? | | ?????????????????????????????????????????????????? | | ?????????????????????????????????????????????????? | | ?????????????????????????????????????????????????? | | ?????????????????????????????????????????????????? | | ?????????????????????????????????????????????????? | | ?????????????????????????????????????????????????? | | ?????????????????????????????????????????????????? | | ?????????????????????????????????????????????????? | | ????????????????????????##??#######??????????????? | | ????????????????????????# #??????????????? | | ????????????????????????# """ """ #??????????????? | | ????????????????????????# """ """ #??????????????? | | ????????????????????????# """ """ #??????????????? | | ????????????????????????# #??????????????? | | ?????????????????Y??????# #??????????????? | | ??????????????????"????##! ################ | | ??????????????????#/?### # ##### # | | ???????????? ##### ## ##+## # | | ??????????? # # | | ??????????? """ # | | ??????????? u """"" # | | ???????????? ##########Y########## # """"" # | | ?????????????????????# r #### # ## """"" # | | ?????????????????????# @! ##??# # ## """ # | | ?????????????????????# " " #???### ## # | | ?????????????????????#[ "R" ##?????# ###+####### | | ?????????????????????# """ #??????# # | | ?????????????????????# #??????# / | | ?????????????????????########??????# # | | ??????????????????????????????????######### # | | ??????????????????????????????????# # "" | | ??????????????????????????????????# # "" | | ??????????????????????????????????# # "" | | ??????????????????????????????????# # | | ??????????????????????????????????# #### | | ??????????????????????????????????###### # #?# | | ??????????????????????????????????????######+##### | | ?????????????????????????????????????## + | | ?????????????????????????????????????# ## | | ?????????????????????????????????????# ## | | ?????????????????????????????????????## ## | | ??????????????????????????????????????## ## | | ???????????????????????????????????????# ## | | ???????????????????????????????????????# ## | | ???????????????????????????????????????# ## | | ???????????????????????????????????????# ## | | ???????????????????????????????????????########### | | ???????????????????????????????????????#?????????# | +----------------------------------------------------+ Best States ------------- Heat Dissipation 28 Energy Generation 12 Energy Capacity 265 Matter Stores 298 Matter Capacity 350 Sight Range 16 Terrain Scan Range 16 Terrain Scan Density 10 Armor Coverage 150 Evasion (%) 50 Recoil Reduction 2 Salvage Targeting 1 Item Schematics ----------------- None Robot Schematics ------------------ None Fabricated ------------ Nothing Alien Tech Used ----------------- None Achievements -------------- None Challenges ------------ None Game ------ Seed EnhancedHardlightLaser Manual? 0 Play Time 00:27:15 Cumulative 2.9 hours Start 2024.10.11 @ 15:14:36 End 2024.10.11 @ 15:42:02 Sessions 1 Manual Loads 0 Difficulty Rogue Special Mode None Game No. 10 Rogue 10 Adventurer 0 Explorer 0 Win Type - Total 0 Types 0/0/0/0/0/0/0/0/0 Lore% 3 Gallery% 5 Achievement% 4 Wizard Run 0 Options --------- Layout 1 ASCII 0 Keyboard 1 Movement Arrows Keybinds 0 Fullscreen 2 Font 32/SmallcapsGlow Map View 50x35 Zoom Use 0% Tactical HUD 1 Map Filters NONE Filters NONE Steam 1 RUN: ae7ee452-9f14-4abd-95b6-36a122b7a8c2